{"text_format":"1","workbook":"xlsx","n_sheets":7,"sheets":["1. Info","Incremental Capital Summary","Fixed Asset Amort and  UCC 1","Fixed Asset Amort and  UCC 2","Fixed Asset Amort and  UCC 3","Fixed Asset Amort and  UCC 4","Fixed Asset Amort and  UCC 5"],"not_rendered":{"charts":0,"images":2,"macros":1,"external_links":1,"defined_names":6,"comments":0,"pivot_tables":0},"unopened":[],"bounds":{"document_bytes":16777216,"sheet_cells":100000,"rows_first":2000,"rows_last":500,"rows_between":2000,"halvings":0,"cell_chars":16384,"cell_head_chars":4096},"cells_cut":0,"cells_raw":0,"read":"whole","date_system":"1900"}

{"sheet":"1. Info","index":0,"n_rows":100,"n_cols":27,"rows_kept":100,"cut":false,"hidden":false,"merged":[[23,2,23,4],[13,2,13,3],[13,5,13,10],[27,2,34,11],[0,2,1,12],[2,2,3,12],[23,5,23,10],[21,5,21,10],[19,5,19,10],[17,5,17,10],[17,2,17,3],[19,2,19,3],[21,2,21,4],[15,5,15,10],[15,2,15,3]]}
[null,null,null,null,null,null,null,null,null,null,null,null,null,null,null,null,null,1]
[]
[]
[]
[]
[]
[]
[]
[]
[]
[]
[]
[null,null,null,null,null,null,null,null,null,null,null,null,null,"Version",1]
[null,null,"Applicant Name:",null,null,"PowerStream Inc."]
[]
[null,null,"Service Territory:",null,null,"York Region and Simcoe County"]
[]
[null,null,"Name:",null,null,"Tom Barrett"]
[]
[null,null,"Title:","Title:",null,"Manager, Rate Applications"]
[]
[null,null,"Phone Number:",null,null,"905.532.4640",null,null,null,null,null,null,null,null,null,null,null,null,null,null,null,null,null,null,null,null,"Company Name"]
[null,null,null,null,null,null,null,null,null,null,null,null,null,null,null,null,null,null,null,null,null,null,null,null,null,1,"Algoma Power Inc."]
[null,null,"Email Address:",null,null,"tom.barrett@powerstream.ca",null,null,null,null,null,null,null,null,null,null,null,null,null,null,null,null,null,null,null,2,"Atikokan Hydro Inc."]
[null,null,null,null,null,null,null,null,null,null,null,null,null,null,null,null,null,null,null,null,null,null,null,null,null,3,"Attawapiskat Power Corp. "]
[null,null,null,null,null,null,null,null,null,null,null,null,null,null,null,null,null,null,null,null,null,null,null,null,null,4,"Bluewater Power Distribution Corporation"]
[null,null,null,null,null,null,null,null,null,null,null,null,null,null,null,null,null,null,null,null,null,null,null,null,null,5,"Brant County Power Inc."]
[null,null,"This Workbook Model is protected by copyright and is being made available to you solely for the purpose of filing your IRM application.   You may use and copy this model for that purpose, and provide a copy of this model to any person that is advising or assisting you in that regard.  Except as indicated above, any copying, reproduction, publication, sale, adaptation, translation, modification, reverse engineering or other use or dissemination of this model without the express written consent of the Ontario Energy Board is prohibited.  If you provide a copy of this model to a person that is advising or assisting you in preparing the application or reviewing your draft rate order, you must ensure that the person understands and agrees to the restrictions noted above.  \n\nWhile this model has been provided in Excel format and is required to be filed with the applications, the onus remains on the applicant to ensure the accuracy of the data and the results.\n",null,null,null,null,null,null,null,null,null,null,null,null,null,null,null,null,null,null,null,null,null,null,6,"Brantford Power Inc."]
[null,null,null,null,null,null,null,null,null,null,null,null,null,null,null,null,null,null,null,null,null,null,null,null,null,7,"Burlington Hydro Inc."]
[null,null,null,null,null,null,null,null,null,null,null,null,null,null,null,null,null,null,null,null,null,null,null,null,null,8,"Cambridge and North Dumfries Hydro Inc."]
[null,null,null,null,null,null,null,null,null,null,null,null,null,null,null,null,null,null,null,null,null,null,null,null,null,9,"Canadian Niagara Power Inc."]
[null,null,null,null,null,null,null,null,null,null,null,null,null,null,null,null,null,null,null,null,null,null,null,null,null,10,"Centre Wellington Hydro Ltd."]
[null,null,null,null,null,null,null,null,null,null,null,null,null,null,null,null,null,null,null,null,null,null,null,null,null,11,"Chapleau Public Utilities Corporation"]
[null,null,null,null,null,null,null,null,null,null,null,null,null,null,null,null,null,null,null,null,null,null,null,null,null,12,"Clinton Power Corporation"]
[null,null,null,null,null,null,null,null,null,null,null,null,null,null,null,null,null,null,null,null,null,null,null,null,null,13,"COLLUS Power Corporation"]
[null,null,null,null,null,null,null,null,null,null,null,null,null,null,null,null,null,null,null,null,null,null,null,null,null,14,"Cooperative Hydro Embrun Inc."]
[null,null,null,null,null,null,null,null,null,null,null,null,null,null,null,null,null,null,null,null,null,null,null,null,null,15,"E.L.K. Energy Inc."]
[null,null,null,null,null,null,null,null,null,null,null,null,null,null,null,null,null,null,null,null,null,null,null,null,null,16,"Enersource Hydro Mississauga Inc."]
[null,null,null,null,null,null,null,null,null,null,null,null,null,null,null,null,null,null,null,null,null,null,null,null,null,17,"Entegrus Powerlines Inc."]
[null,null,null,null,null,null,null,null,null,null,null,null,null,null,null,null,null,null,null,null,null,null,null,null,null,18,"ENWIN Utilities Ltd."]
[null,null,null,null,null,null,null,null,null,null,null,null,null,null,null,null,null,null,null,null,null,null,null,null,null,19,"Erie Thames Powerlines Corporation"]
[null,null,null,null,null,null,null,null,null,null,null,null,null,null,null,null,null,null,null,null,null,null,null,null,null,20,"Espanola Regional Hydro Distribution Corporation"]
[null,null,null,null,null,null,null,null,null,null,null,null,null,null,null,null,null,null,null,null,null,null,null,null,null,21,"Essex Powerlines Corporation"]
[null,null,null,null,null,null,null,null,null,null,null,null,null,null,null,null,null,null,null,null,null,null,null,null,null,22,"Festival Hydro Inc."]
[null,null,null,null,null,null,null,null,null,null,null,null,null,null,null,null,null,null,null,null,null,null,null,null,null,23,"Fort Albany Power Corporation"]
[null,null,null,null,null,null,null,null,null,null,null,null,null,null,null,null,null,null,null,null,null,null,null,null,null,24,"Fort Frances Power Corporation"]
[null,null,null,null,null,null,null,null,null,null,null,null,null,null,null,null,null,null,null,null,null,null,null,null,null,25,"Greater Sudbury Hydro Inc."]
[null,null,null,null,null,null,null,null,null,null,null,null,null,null,null,null,null,null,null,null,null,null,null,null,null,26,"Grimsby Power Inc."]
[null,null,null,null,null,null,null,null,null,null,null,null,null,null,null,null,null,null,null,null,null,null,null,null,null,27,"Guelph Hydro Electric Systems Inc."]
[null,null,null,null,null,null,null,null,null,null,null,null,null,null,null,null,null,null,null,null,null,null,null,null,null,28,"Haldimand County Hydro Inc."]
[null,null,null,null,null,null,null,null,null,null,null,null,null,null,null,null,null,null,null,null,null,null,null,null,null,29,"Halton Hills Hydro Inc."]
[null,null,null,null,null,null,null,null,null,null,null,null,null,null,null,null,null,null,null,null,null,null,null,null,null,30,"Hearst Power Distribution Company Limited"]
[null,null,null,null,null,null,null,null,null,null,null,null,null,null,null,null,null,null,null,null,null,null,null,null,null,31,"Horizon Utilities Corporation"]
[null,null,null,null,null,null,null,null,null,null,null,null,null,null,null,null,null,null,null,null,null,null,null,null,null,32,"Hydro 2000 Inc."]
[null,null,null,null,null,null,null,null,null,null,null,null,null,null,null,null,null,null,null,null,null,null,null,null,null,33,"Hydro Hawkesbury Inc."]
[null,null,null,null,null,null,null,null,null,null,null,null,null,null,null,null,null,null,null,null,null,null,null,null,null,34,"Hydro One Brampton Networks Inc."]
[null,null,null,null,null,null,null,null,null,null,null,null,null,null,null,null,null,null,null,null,null,null,null,null,null,35,"Hydro One Networks Inc."]
[null,null,null,null,null,null,null,null,null,null,null,null,null,null,null,null,null,null,null,null,null,null,null,null,null,36,"Hydro Ottawa Limited"]
[null,null,null,null,null,null,null,null,null,null,null,null,null,null,null,null,null,null,null,null,null,null,null,null,null,37,"Innisfil Hydro Distribution Systems Limited"]
[null,null,null,null,null,null,null,null,null,null,null,null,null,null,null,null,null,null,null,null,null,null,null,null,null,38,"Kashechewan Power Corporation"]
[null,null,null,null,null,null,null,null,null,null,null,null,null,null,null,null,null,null,null,null,null,null,null,null,null,39,"Kenora Hydro Electric Corporation Ltd."]
[null,null,null,null,null,null,null,null,null,null,null,null,null,null,null,null,null,null,null,null,null,null,null,null,null,40,"Kingston Hydro Corporation"]
[null,null,null,null,null,null,null,null,null,null,null,null,null,null,null,null,null,null,null,null,null,null,null,null,null,41,"Kitchener-Wilmot Hydro Inc."]
[null,null,null,null,null,null,null,null,null,null,null,null,null,null,null,null,null,null,null,null,null,null,null,null,null,42,"Lakefront Utilities Inc."]
[null,null,null,null,null,null,null,null,null,null,null,null,null,null,null,null,null,null,null,null,null,null,null,null,null,43,"Lakeland Power Distribution Ltd."]
[null,null,null,null,null,null,null,null,null,null,null,null,null,null,null,null,null,null,null,null,null,null,null,null,null,44,"London Hydro Inc."]
[null,null,null,null,null,null,null,null,null,null,null,null,null,null,null,null,null,null,null,null,null,null,null,null,null,45,"Midland Power Utility Corporation"]
[null,null,null,null,null,null,null,null,null,null,null,null,null,null,null,null,null,null,null,null,null,null,null,null,null,46,"Milton Hydro Distribution inc."]
[null,null,null,null,null,null,null,null,null,null,null,null,null,null,null,null,null,null,null,null,null,null,null,null,null,47,"Newmarket - Tay Power Distribution Ltd."]
[null,null,null,null,null,null,null,null,null,null,null,null,null,null,null,null,null,null,null,null,null,null,null,null,null,48,"Niagara Peninsula Energy Inc."]
[null,null,null,null,null,null,null,null,null,null,null,null,null,null,null,null,null,null,null,null,null,null,null,null,null,49,"Niagara-on-the-Lake Hydro Inc."]
[null,null,null,null,null,null,null,null,null,null,null,null,null,null,null,null,null,null,null,null,null,null,null,null,null,50,"Norfolk Power Distribution Inc."]
[null,null,null,null,null,null,null,null,null,null,null,null,null,null,null,null,null,null,null,null,null,null,null,null,null,51,"North Bay Hydro Distribution Limited"]
[null,null,null,null,null,null,null,null,null,null,null,null,null,null,null,null,null,null,null,null,null,null,null,null,null,52,"Northern Ontario Wires Inc."]
[null,null,null,null,null,null,null,null,null,null,null,null,null,null,null,null,null,null,null,null,null,null,null,null,null,53,"Oakville Hydro Electricity Distribution Inc."]
[null,null,null,null,null,null,null,null,null,null,null,null,null,null,null,null,null,null,null,null,null,null,null,null,null,54,"Orangeville Hydro Limited"]
[null,null,null,null,null,null,null,null,null,null,null,null,null,null,null,null,null,null,null,null,null,null,null,null,null,55,"Orillia Power Distribution Corporation"]
[null,null,null,null,null,null,null,null,null,null,null,null,null,null,null,null,null,null,null,null,null,null,null,null,null,56,"Oshawa PUC Networks Inc."]
[null,null,null,null,null,null,null,null,null,null,null,null,null,null,null,null,null,null,null,null,null,null,null,null,null,57,"Ottawa River Power Corporation"]
[null,null,null,null,null,null,null,null,null,null,null,null,null,null,null,null,null,null,null,null,null,null,null,null,null,58,"Parry Sound Power Corporation"]
[null,null,null,null,null,null,null,null,null,null,null,null,null,null,null,null,null,null,null,null,null,null,null,null,null,59,"Peterborough Distribution Incorporated"]
[null,null,null,null,null,null,null,null,null,null,null,null,null,null,null,null,null,null,null,null,null,null,null,null,null,60,"PowerStream Inc."]
[null,null,null,null,null,null,null,null,null,null,null,null,null,null,null,null,null,null,null,null,null,null,null,null,null,61,"PUC Distribution Inc."]
[null,null,null,null,null,null,null,null,null,null,null,null,null,null,null,null,null,null,null,null,null,null,null,null,null,62,"Renfrew Hydro Inc."]
[null,null,null,null,null,null,null,null,null,null,null,null,null,null,null,null,null,null,null,null,null,null,null,null,null,63,"Rideau St. Lawrence Distribution Inc."]
[null,null,null,null,null,null,null,null,null,null,null,null,null,null,null,null,null,null,null,null,null,null,null,null,null,64,"Sioux Lookout Hydro Inc."]
[null,null,null,null,null,null,null,null,null,null,null,null,null,null,null,null,null,null,null,null,null,null,null,null,null,65,"St. Thomas Energy Inc."]
[null,null,null,null,null,null,null,null,null,null,null,null,null,null,null,null,null,null,null,null,null,null,null,null,null,66,"Thunder Bay Hydro Electricity Distribution Inc."]
[null,null,null,null,null,null,null,null,null,null,null,null,null,null,null,null,null,null,null,null,null,null,null,null,null,67,"Tillsonburg Hydro Inc."]
[null,null,null,null,null,null,null,null,null,null,null,null,null,null,null,null,null,null,null,null,null,null,null,null,null,68,"Toronto Hydro-Electric System Limited"]
[null,null,null,null,null,null,null,null,null,null,null,null,null,null,null,null,null,null,null,null,null,null,null,null,null,69,"Veridian Connections Inc."]
[null,null,null,null,null,null,null,null,null,null,null,null,null,null,null,null,null,null,null,null,null,null,null,null,null,70,"Wasaga Distribution Inc."]
[null,null,null,null,null,null,null,null,null,null,null,null,null,null,null,null,null,null,null,null,null,null,null,null,null,71,"Waterloo North Hydro Inc."]
[null,null,null,null,null,null,null,null,null,null,null,null,null,null,null,null,null,null,null,null,null,null,null,null,null,72,"Welland Hydro-Electric System Corp."]
[null,null,null,null,null,null,null,null,null,null,null,null,null,null,null,null,null,null,null,null,null,null,null,null,null,73,"Wellington North Power Inc."]
[null,null,null,null,null,null,null,null,null,null,null,null,null,null,null,null,null,null,null,null,null,null,null,null,null,74,"West Coast Huron Energy Inc."]
[null,null,null,null,null,null,null,null,null,null,null,null,null,null,null,null,null,null,null,null,null,null,null,null,null,75,"West Perth Power Inc."]
[null,null,null,null,null,null,null,null,null,null,null,null,null,null,null,null,null,null,null,null,null,null,null,null,null,76,"Westario Power Inc."]
[null,null,null,null,null,null,null,null,null,null,null,null,null,null,null,null,null,null,null,null,null,null,null,null,null,77,"Whitby Hydro Electric Corporation"]
[null,null,null,null,null,null,null,null,null,null,null,null,null,null,null,null,null,null,null,null,null,null,null,null,null,78,"Woodstock Hydro Services Inc."]

{"sheet":"Incremental Capital Summary","index":1,"n_rows":32,"n_cols":15,"rows_kept":32,"cut":false,"hidden":false,"merged":[[16,1,16,2],[10,1,10,2],[18,6,19,6],[18,8,19,8],[13,1,13,2]]}
[]
[]
[]
[]
[]
[]
[]
[]
[]
[null,"Using the pull-down menu below, please identify what year of the IRM cycle you are in."]
[null,"1st year of IRM cycle"]
[]
[null,"Name or General Description of Project "]
[null,"System Renewal - Pole Replacements"]
[]
[null,"Details of Project "]
[null,"See Appendix G"]
[]
[null,null,null,null,null,null,"Capital Cost (1/2 year rule applied)",null,"Depreciation   Rate"]
[null,"Asset Component",null,null,"Capital Cost",null,null,null,null,null,"CCA Class",null,"CCA Rate"]
[null,1,"Poles towers and fixtures",null,3677840,null,{"$f":"IF($B$11=\"4th year of IRM cycle\", E21/2, 0)","v":0},null,2.2222200000000001E-2,null,47,null,0.08]
[null,2,"Overhead conductor and devices ",null,1098033,null,{"$f":"IF($B$11=\"4th year of IRM cycle\", E22/2, 0)","v":0},null,2.5000000000000001E-2,null,47,null,0.08]
[null,3,null,null,null,null,{"$f":"IF($B$11=\"4th year of IRM cycle\", E23/2, 0)","v":0}]
[null,4,null,null,null,null,{"$f":"IF($B$11=\"4th year of IRM cycle\", E24/2, 0)","v":0}]
[null,5,null,null,null,null,{"$f":"IF($B$11=\"4th year of IRM cycle\", E25/2, 0)","v":0}]
[]
[null,null,null,null,2014,null,null,null,2015,null,2016,null,2017,null,2018]
[null,"Closing Net Fixed Asset",null,null,{"$f":"SUM('Fixed Asset Amort and  UCC 1'!D32,'Fixed Asset Amort and  UCC 2'!D32, 'Fixed Asset Amort and  UCC 3'!D32, 'Fixed Asset Amort and  UCC 4'!D32,  'Fixed Asset Amort and  UCC 5'!D32)","v":4666692.4789519999},null,null,null,{"$f":"SUM('Fixed Asset Amort and  UCC 1'!E32,'Fixed Asset Amort and  UCC 2'!E32, 'Fixed Asset Amort and  UCC 3'!E32, 'Fixed Asset Amort and  UCC 4'!E32,  'Fixed Asset Amort and  UCC 5'!E32)","v":4557511.9579039998},null,{"$f":"SUM('Fixed Asset Amort and  UCC 1'!F32,'Fixed Asset Amort and  UCC 2'!F32, 'Fixed Asset Amort and  UCC 3'!F32, 'Fixed Asset Amort and  UCC 4'!F32,  'Fixed Asset Amort and  UCC 5'!F32)","v":4448331.4368559998},null,{"$f":"SUM('Fixed Asset Amort and  UCC 1'!G32,'Fixed Asset Amort and  UCC 2'!G32, 'Fixed Asset Amort and  UCC 3'!G32, 'Fixed Asset Amort and  UCC 4'!G32,  'Fixed Asset Amort and  UCC 5'!G32)","v":4339150.9158079997},null,{"$f":"SUM('Fixed Asset Amort and  UCC 1'!H32,'Fixed Asset Amort and  UCC 2'!H32, 'Fixed Asset Amort and  UCC 3'!H32, 'Fixed Asset Amort and  UCC 4'!H32,  'Fixed Asset Amort and  UCC 5'!H32)","v":4229970.3947599996}]
[]
[null,"Amortization Expense",null,null,{"$f":"SUM('Fixed Asset Amort and  UCC 1'!D28,'Fixed Asset Amort and  UCC 2'!D28, 'Fixed Asset Amort and  UCC 3'!D28, 'Fixed Asset Amort and  UCC 4'!D28,  'Fixed Asset Amort and  UCC 5'!D28)","v":109180.521048},null,null,null,{"$f":"SUM('Fixed Asset Amort and  UCC 1'!E28,'Fixed Asset Amort and  UCC 2'!E28, 'Fixed Asset Amort and  UCC 3'!E28, 'Fixed Asset Amort and  UCC 4'!E28,  'Fixed Asset Amort and  UCC 5'!E28)","v":109180.521048},null,{"$f":"SUM('Fixed Asset Amort and  UCC 1'!F28,'Fixed Asset Amort and  UCC 2'!F28, 'Fixed Asset Amort and  UCC 3'!F28, 'Fixed Asset Amort and  UCC 4'!F28,  'Fixed Asset Amort and  UCC 5'!F28)","v":109180.521048},null,{"$f":"SUM('Fixed Asset Amort and  UCC 1'!G28,'Fixed Asset Amort and  UCC 2'!G28, 'Fixed Asset Amort and  UCC 3'!G28, 'Fixed Asset Amort and  UCC 4'!G28,  'Fixed Asset Amort and  UCC 5'!G28)","v":109180.521048},null,{"$f":"SUM('Fixed Asset Amort and  UCC 1'!H28,'Fixed Asset Amort and  UCC 2'!H28, 'Fixed Asset Amort and  UCC 3'!H28, 'Fixed Asset Amort and  UCC 4'!H28,  'Fixed Asset Amort and  UCC 5'!H28)","v":109180.521048}]
[]
[null,"CCA",null,null,{"$f":"SUM('Fixed Asset Amort and  UCC 1'!D50,'Fixed Asset Amort and  UCC 2'!D50, 'Fixed Asset Amort and  UCC 3'!D50, 'Fixed Asset Amort and  UCC 4'!D50,  'Fixed Asset Amort and  UCC 5'!D50)","v":382069.84},null,null,null,{"$f":"SUM('Fixed Asset Amort and  UCC 1'!E50,'Fixed Asset Amort and  UCC 2'!E50, 'Fixed Asset Amort and  UCC 3'!E50, 'Fixed Asset Amort and  UCC 4'!E50,  'Fixed Asset Amort and  UCC 5'!E50)","v":351504.25279999996},null,{"$f":"SUM('Fixed Asset Amort and  UCC 1'!F50,'Fixed Asset Amort and  UCC 2'!F50, 'Fixed Asset Amort and  UCC 3'!F50, 'Fixed Asset Amort and  UCC 4'!F50,  'Fixed Asset Amort and  UCC 5'!F50)","v":323383.91257599997},null,{"$f":"SUM('Fixed Asset Amort and  UCC 1'!G50,'Fixed Asset Amort and  UCC 2'!G50, 'Fixed Asset Amort and  UCC 3'!G50, 'Fixed Asset Amort and  UCC 4'!G50,  'Fixed Asset Amort and  UCC 5'!G50)","v":297513.19956991996},null,{"$f":"SUM('Fixed Asset Amort and  UCC 1'!H50,'Fixed Asset Amort and  UCC 2'!H50, 'Fixed Asset Amort and  UCC 3'!H50, 'Fixed Asset Amort and  UCC 4'!H50,  'Fixed Asset Amort and  UCC 5'!H50)","v":273712.14360432635}]

{"sheet":"Fixed Asset Amort and  UCC 1","index":2,"n_rows":51,"n_cols":8,"rows_kept":51,"cut":false,"hidden":false,"merged":[]}
[]
[]
[]
[]
[]
[]
[]
[]
[]
[null,"Fixed Asset Amortization and  UCC 1"]
[]
[null,"Name or General Description of Project "]
[null,{"$f":"IF(ISBLANK('Incremental Capital Summary'!B14), \"\", 'Incremental Capital Summary'!B14)","v":"System Renewal - Pole Replacements"}]
[]
[null,"Asset Component"]
[null,{"$f":"IF(ISBLANK('Incremental Capital Summary'!C21),\"\",'Incremental Capital Summary'!C21)","v":"Poles towers and fixtures"}]
[]
[]
[null,"Average Net Fixed Assets"]
[null,null,null,2014,2015,2016,2017,2018]
[null,"Net Fixed Assets",null,"Forecasted","Forecasted","Forecasted","Forecasted","Forecasted"]
[]
[null,"Opening Capital Investment",null,0,{"$f":"D25","v":3677840},{"$f":"E25","v":3677840},{"$f":"F25","v":3677840},{"$f":"G25","v":3677840}]
[null,"Capital Investment",null,{"$f":"IF('Incremental Capital Summary'!$B$11=\"4th year of IRM cycle\", 'Incremental Capital Summary'!E21/2,  'Incremental Capital Summary'!E21)","v":3677840},0,0,0,0]
[null,"Closing Capital Investment",null,{"$f":"SUM(D23:D24)","v":3677840},{"$f":"SUM(E23:E24)","v":3677840},{"$f":"SUM(F23:F24)","v":3677840},{"$f":"SUM(G23:G24)","v":3677840},{"$f":"SUM(H23:H24)","v":3677840}]
[]
[null,"Opening Accumulated Amortization",null,0,{"$f":"D29","v":81729.696047999998},{"$f":"E29","v":163459.392096},{"$f":"F29","v":245189.08814399998},{"$f":"G29","v":326918.78419199999}]
[null,"Amortization",{"$f":"'Incremental Capital Summary'!I21","v":2.2222200000000001E-2},{"$f":"D24*$C$28","v":81729.696047999998},{"$f":"E23*$C$28","v":81729.696047999998},{"$f":"F23*$C$28","v":81729.696047999998},{"$f":"G23*$C$28","v":81729.696047999998},{"$f":"H23*$C$28","v":81729.696047999998}]
[null,"Closing Accumulated Amortization",null,{"$f":"SUM(D27:D28)","v":81729.696047999998},{"$f":"SUM(E27:E28)","v":163459.392096},{"$f":"SUM(F27:F28)","v":245189.08814399998},{"$f":"SUM(G27:G28)","v":326918.78419199999},{"$f":"SUM(H27:H28)","v":408648.48024}]
[]
[null,"Opening Net Fixed Assets",null,0,{"$f":"E23-E27","v":3596110.3039520001},{"$f":"F23-F27","v":3514380.6079040002},{"$f":"G23-G27","v":3432650.9118559998},{"$f":"H23-H27","v":3350921.2158079999}]
[null,"Closing Net Fixed Assets",null,{"$f":"D25-D29","v":3596110.3039520001},{"$f":"E25-E29","v":3514380.6079040002},{"$f":"F25-F29","v":3432650.9118559998},{"$f":"G25-G29","v":3350921.2158079999},{"$f":"H25-H29","v":3269191.5197600001}]
[null,"Average Net Fixed Assets",null,{"$f":"SUM(D31:D32)/2","v":1798055.1519760001},{"$f":"SUM(E31:E32)/2","v":3555245.4559280002},{"$f":"SUM(F31:F32)/2","v":3473515.7598799998},{"$f":"SUM(G31:G32)/2","v":3391786.0638319999},{"$f":"SUM(H31:H32)/2","v":3310056.367784}]
[]
[]
[]
[]
[null,"For PILs Calculation"]
[]
[null,"UCC",null,2014,2015,2016,2017,2018]
[null,null,null,"Forecasted","Forecasted","Forecasted","Forecasted","Forecasted"]
[]
[null,"Opening UCC",null,0,{"$f":"D51","v":3383612.8},{"$f":"E51","v":3112923.7759999996},{"$f":"F51","v":2863889.8739199997},{"$f":"G51","v":2634778.6840063995}]
[null,"Capital Additions",null,{"$f":"D24","v":3677840},{"$f":"E24","v":0},{"$f":"F24","v":0},{"$f":"G24","v":0},{"$f":"H24","v":0}]
[null,"UCC Before Half Year Rule",null,{"$f":"SUM(D43:D44)","v":3677840},{"$f":"SUM(E43:E44)","v":3383612.8},{"$f":"SUM(F43:F44)","v":3112923.7759999996},{"$f":"SUM(G43:G44)","v":2863889.8739199997},{"$f":"SUM(H43:H44)","v":2634778.6840063995}]
[null,"Half Year Rule (1/2 Additions - Disposals)",null,0,{"$f":"E44/2","v":0},{"$f":"F44/2","v":0},{"$f":"G44/2","v":0},{"$f":"H44/2","v":0}]
[null,"Reduced UCC",null,{"$f":"D45-D46","v":3677840},{"$f":"E45-E46","v":3383612.8},{"$f":"F45-F46","v":3112923.7759999996},{"$f":"G45-G46","v":2863889.8739199997},{"$f":"H45-H46","v":2634778.6840063995}]
[null,"CCA Rate Class",{"$f":"'Incremental Capital Summary'!K21","v":47}]
[null,"CCA Rate ",{"$f":"'Incremental Capital Summary'!M21","v":0.08}]
[null,"CCA",null,{"$f":"D47*$C$49","v":294227.20000000001},{"$f":"E47*$C$49","v":270689.02399999998},{"$f":"F47*$C$49","v":249033.90207999997},{"$f":"G47*$C$49","v":229111.18991359998},{"$f":"H47*$C$49","v":210782.29472051197}]
[null,"Closing UCC",null,{"$f":"D45-D50","v":3383612.8},{"$f":"E45-E50","v":3112923.7759999996},{"$f":"F45-F50","v":2863889.8739199997},{"$f":"G45-G50","v":2634778.6840063995},{"$f":"H45-H50","v":2423996.3892858876}]

{"sheet":"Fixed Asset Amort and  UCC 2","index":3,"n_rows":51,"n_cols":8,"rows_kept":51,"cut":false,"hidden":false,"merged":[]}
[]
[]
[]
[]
[]
[]
[]
[]
[]
[null,"Fixed Asset Amortization and  UCC 2"]
[]
[null,"Name or General Description of Project "]
[null,{"$f":"IF(ISBLANK('Incremental Capital Summary'!B14), \"\", 'Incremental Capital Summary'!B14)","v":"System Renewal - Pole Replacements"}]
[]
[null,"Asset Component"]
[null,{"$f":"IF(ISBLANK('Incremental Capital Summary'!C22),\"\",'Incremental Capital Summary'!C22)","v":"Overhead conductor and devices "}]
[]
[]
[null,"Average Net Fixed Assets"]
[null,null,null,2014,2015,2016,2017,2018]
[null,"Net Fixed Assets",null,"Forecasted","Forecasted","Forecasted","Forecasted","Forecasted"]
[]
[null,"Opening Capital Investment",null,0,{"$f":"D25","v":1098033},{"$f":"E25","v":1098033},{"$f":"F25","v":1098033},{"$f":"G25","v":1098033}]
[null,"Capital Investment",null,{"$f":"IF('Incremental Capital Summary'!$B$11=\"4th year of IRM cycle\", 'Incremental Capital Summary'!E22/2,  'Incremental Capital Summary'!E22)","v":1098033},0,0,0,0]
[null,"Closing Capital Investment",null,{"$f":"SUM(D23:D24)","v":1098033},{"$f":"SUM(E23:E24)","v":1098033},{"$f":"SUM(F23:F24)","v":1098033},{"$f":"SUM(G23:G24)","v":1098033},{"$f":"SUM(H23:H24)","v":1098033}]
[]
[null,"Opening Accumulated Amortization",null,0,{"$f":"D29","v":27450.825000000001},{"$f":"E29","v":54901.65},{"$f":"F29","v":82352.475000000006},{"$f":"G29","v":109803.3}]
[null,"Amortization",{"$f":"'Incremental Capital Summary'!I22","v":2.5000000000000001E-2},{"$f":"D24*$C$28","v":27450.825000000001},{"$f":"E23*$C$28","v":27450.825000000001},{"$f":"F23*$C$28","v":27450.825000000001},{"$f":"G23*$C$28","v":27450.825000000001},{"$f":"H23*$C$28","v":27450.825000000001}]
[null,"Closing Accumulated Amortization",null,{"$f":"SUM(D27:D28)","v":27450.825000000001},{"$f":"SUM(E27:E28)","v":54901.65},{"$f":"SUM(F27:F28)","v":82352.475000000006},{"$f":"SUM(G27:G28)","v":109803.3},{"$f":"SUM(H27:H28)","v":137254.125}]
[]
[null,"Opening Net Fixed Assets",null,0,{"$f":"E23-E27","v":1070582.175},{"$f":"F23-F27","v":1043131.35},{"$f":"G23-G27","v":1015680.525},{"$f":"H23-H27","v":988229.7}]
[null,"Closing Net Fixed Assets",null,{"$f":"D25-D29","v":1070582.175},{"$f":"E25-E29","v":1043131.35},{"$f":"F25-F29","v":1015680.525},{"$f":"G25-G29","v":988229.7},{"$f":"H25-H29","v":960778.875}]
[null,"Average Net Fixed Assets",null,{"$f":"SUM(D31:D32)/2","v":535291.08750000002},{"$f":"SUM(E31:E32)/2","v":1056856.7625},{"$f":"SUM(F31:F32)/2","v":1029405.9375},{"$f":"SUM(G31:G32)/2","v":1001955.1125},{"$f":"SUM(H31:H32)/2","v":974504.28749999998}]
[]
[]
[]
[]
[null,"For PILs Calculation"]
[]
[null,"UCC",null,2014,2015,2016,2017,2018]
[null,null,null,"Forecasted","Forecasted","Forecasted","Forecasted","Forecasted"]
[]
[null,"Opening UCC",null,0,{"$f":"D51","v":1010190.36},{"$f":"E51","v":929375.13119999995},{"$f":"F51","v":855025.12070399988},{"$f":"G51","v":786623.11104767991}]
[null,"Capital Additions",null,{"$f":"D24","v":1098033},{"$f":"E24","v":0},{"$f":"F24","v":0},{"$f":"G24","v":0},{"$f":"H24","v":0}]
[null,"UCC Before Half Year Rule",null,{"$f":"SUM(D43:D44)","v":1098033},{"$f":"SUM(E43:E44)","v":1010190.36},{"$f":"SUM(F43:F44)","v":929375.13119999995},{"$f":"SUM(G43:G44)","v":855025.12070399988},{"$f":"SUM(H43:H44)","v":786623.11104767991}]
[null,"Half Year Rule (1/2 Additions - Disposals)",null,0,{"$f":"E44/2","v":0},{"$f":"F44/2","v":0},{"$f":"G44/2","v":0},{"$f":"H44/2","v":0}]
[null,"Reduced UCC",null,{"$f":"D45-D46","v":1098033},{"$f":"E45-E46","v":1010190.36},{"$f":"F45-F46","v":929375.13119999995},{"$f":"G45-G46","v":855025.12070399988},{"$f":"H45-H46","v":786623.11104767991}]
[null,"CCA Rate Class",{"$f":"'Incremental Capital Summary'!K22","v":47}]
[null,"CCA Rate ",{"$f":"'Incremental Capital Summary'!M22","v":0.08}]
[null,"CCA",null,{"$f":"D47*$C$49","v":87842.64},{"$f":"E47*$C$49","v":80815.228799999997},{"$f":"F47*$C$49","v":74350.010496000003},{"$f":"G47*$C$49","v":68402.009656319991},{"$f":"H47*$C$49","v":62929.848883814397}]
[null,"Closing UCC",null,{"$f":"D45-D50","v":1010190.36},{"$f":"E45-E50","v":929375.13119999995},{"$f":"F45-F50","v":855025.12070399988},{"$f":"G45-G50","v":786623.11104767991},{"$f":"H45-H50","v":723693.2621638655}]

{"sheet":"Fixed Asset Amort and  UCC 3","index":4,"n_rows":51,"n_cols":8,"rows_kept":51,"cut":false,"hidden":false,"merged":[]}
[]
[]
[]
[]
[]
[]
[]
[]
[]
[null,"Fixed Asset Amortization and  UCC 3"]
[]
[null,"Name or General Description of Project "]
[null,{"$f":"IF(ISBLANK('Incremental Capital Summary'!B14), \"\", 'Incremental Capital Summary'!B14)","v":"System Renewal - Pole Replacements"}]
[]
[null,"Asset Component"]
[null,{"$f":"IF(ISBLANK('Incremental Capital Summary'!C23),\"\",'Incremental Capital Summary'!C23)","v":""}]
[]
[]
[null,"Average Net Fixed Assets"]
[null,null,null,2014,2015,2016,2017,2018]
[null,"Net Fixed Assets",null,"Forecasted","Forecasted","Forecasted","Forecasted","Forecasted"]
[]
[null,"Opening Capital Investment",null,0,{"$f":"D25","v":0},{"$f":"E25","v":0},{"$f":"F25","v":0},{"$f":"G25","v":0}]
[null,"Capital Investment",null,{"$f":"IF('Incremental Capital Summary'!$B$11=\"4th year of IRM cycle\", 'Incremental Capital Summary'!E23/2,  'Incremental Capital Summary'!E23)","v":0},0,0,0,0]
[null,"Closing Capital Investment",null,{"$f":"SUM(D23:D24)","v":0},{"$f":"SUM(E23:E24)","v":0},{"$f":"SUM(F23:F24)","v":0},{"$f":"SUM(G23:G24)","v":0},{"$f":"SUM(H23:H24)","v":0}]
[]
[null,"Opening Accumulated Amortization",null,0,{"$f":"D29","v":0},{"$f":"E29","v":0},{"$f":"F29","v":0},{"$f":"G29","v":0}]
[null,"Amortization",{"$f":"'Incremental Capital Summary'!I23","v":0},{"$f":"D24*$C$28","v":0},{"$f":"E23*$C$28","v":0},{"$f":"F23*$C$28","v":0},{"$f":"G23*$C$28","v":0},{"$f":"H23*$C$28","v":0}]
[null,"Closing Accumulated Amortization",null,{"$f":"SUM(D27:D28)","v":0},{"$f":"SUM(E27:E28)","v":0},{"$f":"SUM(F27:F28)","v":0},{"$f":"SUM(G27:G28)","v":0},{"$f":"SUM(H27:H28)","v":0}]
[]
[null,"Opening Net Fixed Assets",null,0,{"$f":"E23-E27","v":0},{"$f":"F23-F27","v":0},{"$f":"G23-G27","v":0},{"$f":"H23-H27","v":0}]
[null,"Closing Net Fixed Assets",null,{"$f":"D25-D29","v":0},{"$f":"E25-E29","v":0},{"$f":"F25-F29","v":0},{"$f":"G25-G29","v":0},{"$f":"H25-H29","v":0}]
[null,"Average Net Fixed Assets",null,{"$f":"SUM(D31:D32)/2","v":0},{"$f":"SUM(E31:E32)/2","v":0},{"$f":"SUM(F31:F32)/2","v":0},{"$f":"SUM(G31:G32)/2","v":0},{"$f":"SUM(H31:H32)/2","v":0}]
[]
[]
[]
[]
[null,"For PILs Calculation"]
[]
[null,"UCC",null,2014,2015,2016,2017,2018]
[null,null,null,"Forecasted","Forecasted","Forecasted","Forecasted","Forecasted"]
[]
[null,"Opening UCC",null,0,{"$f":"D51","v":0},{"$f":"E51","v":0},{"$f":"F51","v":0},{"$f":"G51","v":0}]
[null,"Capital Additions",null,{"$f":"D24","v":0},{"$f":"E24","v":0},{"$f":"F24","v":0},{"$f":"G24","v":0},{"$f":"H24","v":0}]
[null,"UCC Before Half Year Rule",null,{"$f":"SUM(D43:D44)","v":0},{"$f":"SUM(E43:E44)","v":0},{"$f":"SUM(F43:F44)","v":0},{"$f":"SUM(G43:G44)","v":0},{"$f":"SUM(H43:H44)","v":0}]
[null,"Half Year Rule (1/2 Additions - Disposals)",null,0,{"$f":"E44/2","v":0},{"$f":"F44/2","v":0},{"$f":"G44/2","v":0},{"$f":"H44/2","v":0}]
[null,"Reduced UCC",null,{"$f":"D45-D46","v":0},{"$f":"E45-E46","v":0},{"$f":"F45-F46","v":0},{"$f":"G45-G46","v":0},{"$f":"H45-H46","v":0}]
[null,"CCA Rate Class",{"$f":"'Incremental Capital Summary'!K23","v":0}]
[null,"CCA Rate ",{"$f":"'Incremental Capital Summary'!M23","v":0}]
[null,"CCA",null,{"$f":"D47*$C$49","v":0},{"$f":"E47*$C$49","v":0},{"$f":"F47*$C$49","v":0},{"$f":"G47*$C$49","v":0},{"$f":"H47*$C$49","v":0}]
[null,"Closing UCC",null,{"$f":"D45-D50","v":0},{"$f":"E45-E50","v":0},{"$f":"F45-F50","v":0},{"$f":"G45-G50","v":0},{"$f":"H45-H50","v":0}]

{"sheet":"Fixed Asset Amort and  UCC 4","index":5,"n_rows":51,"n_cols":8,"rows_kept":51,"cut":false,"hidden":false,"merged":[]}
[]
[]
[]
[]
[]
[]
[]
[]
[]
[null,"Fixed Asset Amortization and  UCC 4"]
[]
[null,"Name or General Description of Project "]
[null,{"$f":"IF(ISBLANK('Incremental Capital Summary'!B14), \"\", 'Incremental Capital Summary'!B14)","v":"System Renewal - Pole Replacements"}]
[]
[null,"Asset Component"]
[null,{"$f":"IF(ISBLANK('Incremental Capital Summary'!C24),\"\",'Incremental Capital Summary'!C24)","v":""}]
[]
[]
[null,"Average Net Fixed Assets"]
[null,null,null,2014,2015,2016,2017,2018]
[null,"Net Fixed Assets",null,"Forecasted","Forecasted","Forecasted","Forecasted","Forecasted"]
[]
[null,"Opening Capital Investment",null,0,{"$f":"D25","v":0},{"$f":"E25","v":0},{"$f":"F25","v":0},{"$f":"G25","v":0}]
[null,"Capital Investment",null,{"$f":"IF('Incremental Capital Summary'!$B$11=\"4th year of IRM cycle\", 'Incremental Capital Summary'!E24/2,  'Incremental Capital Summary'!E24)","v":0},0,0,0,0]
[null,"Closing Capital Investment",null,{"$f":"SUM(D23:D24)","v":0},{"$f":"SUM(E23:E24)","v":0},{"$f":"SUM(F23:F24)","v":0},{"$f":"SUM(G23:G24)","v":0},{"$f":"SUM(H23:H24)","v":0}]
[]
[null,"Opening Accumulated Amortization",null,0,{"$f":"D29","v":0},{"$f":"E29","v":0},{"$f":"F29","v":0},{"$f":"G29","v":0}]
[null,"Amortization",{"$f":"'Incremental Capital Summary'!I24","v":0},{"$f":"D24*$C$28","v":0},{"$f":"E23*$C$28","v":0},{"$f":"F23*$C$28","v":0},{"$f":"G23*$C$28","v":0},{"$f":"H23*$C$28","v":0}]
[null,"Closing Accumulated Amortization",null,{"$f":"SUM(D27:D28)","v":0},{"$f":"SUM(E27:E28)","v":0},{"$f":"SUM(F27:F28)","v":0},{"$f":"SUM(G27:G28)","v":0},{"$f":"SUM(H27:H28)","v":0}]
[]
[null,"Opening Net Fixed Assets",null,0,{"$f":"E23-E27","v":0},{"$f":"F23-F27","v":0},{"$f":"G23-G27","v":0},{"$f":"H23-H27","v":0}]
[null,"Closing Net Fixed Assets",null,{"$f":"D25-D29","v":0},{"$f":"E25-E29","v":0},{"$f":"F25-F29","v":0},{"$f":"G25-G29","v":0},{"$f":"H25-H29","v":0}]
[null,"Average Net Fixed Assets",null,{"$f":"SUM(D31:D32)/2","v":0},{"$f":"SUM(E31:E32)/2","v":0},{"$f":"SUM(F31:F32)/2","v":0},{"$f":"SUM(G31:G32)/2","v":0},{"$f":"SUM(H31:H32)/2","v":0}]
[]
[]
[]
[]
[null,"For PILs Calculation"]
[]
[null,"UCC",null,2014,2015,2016,2017,2018]
[null,null,null,"Forecasted","Forecasted","Forecasted","Forecasted","Forecasted"]
[]
[null,"Opening UCC",null,0,{"$f":"D51","v":0},{"$f":"E51","v":0},{"$f":"F51","v":0},{"$f":"G51","v":0}]
[null,"Capital Additions",null,{"$f":"D24","v":0},{"$f":"E24","v":0},{"$f":"F24","v":0},{"$f":"G24","v":0},{"$f":"H24","v":0}]
[null,"UCC Before Half Year Rule",null,{"$f":"SUM(D43:D44)","v":0},{"$f":"SUM(E43:E44)","v":0},{"$f":"SUM(F43:F44)","v":0},{"$f":"SUM(G43:G44)","v":0},{"$f":"SUM(H43:H44)","v":0}]
[null,"Half Year Rule (1/2 Additions - Disposals)",null,0,{"$f":"E44/2","v":0},{"$f":"F44/2","v":0},{"$f":"G44/2","v":0},{"$f":"H44/2","v":0}]
[null,"Reduced UCC",null,{"$f":"D45-D46","v":0},{"$f":"E45-E46","v":0},{"$f":"F45-F46","v":0},{"$f":"G45-G46","v":0},{"$f":"H45-H46","v":0}]
[null,"CCA Rate Class",{"$f":"'Incremental Capital Summary'!K24","v":0}]
[null,"CCA Rate ",{"$f":"'Incremental Capital Summary'!M24","v":0}]
[null,"CCA",null,{"$f":"D47*$C$49","v":0},{"$f":"E47*$C$49","v":0},{"$f":"F47*$C$49","v":0},{"$f":"G47*$C$49","v":0},{"$f":"H47*$C$49","v":0}]
[null,"Closing UCC",null,{"$f":"D45-D50","v":0},{"$f":"E45-E50","v":0},{"$f":"F45-F50","v":0},{"$f":"G45-G50","v":0},{"$f":"H45-H50","v":0}]

{"sheet":"Fixed Asset Amort and  UCC 5","index":6,"n_rows":51,"n_cols":8,"rows_kept":51,"cut":false,"hidden":false,"merged":[]}
[]
[]
[]
[]
[]
[]
[]
[]
[]
[null,"Fixed Asset Amortization and  UCC 5"]
[]
[null,"Name or General Description of Project "]
[null,{"$f":"IF(ISBLANK('Incremental Capital Summary'!B14), \"\", 'Incremental Capital Summary'!B14)","v":"System Renewal - Pole Replacements"}]
[]
[null,"Asset Component"]
[null,{"$f":"IF(ISBLANK('Incremental Capital Summary'!C25),\"\",'Incremental Capital Summary'!C25)","v":""}]
[]
[]
[null,"Average Net Fixed Assets"]
[null,null,null,2014,2015,2016,2017,2018]
[null,"Net Fixed Assets",null,"Forecasted","Forecasted","Forecasted","Forecasted","Forecasted"]
[]
[null,"Opening Capital Investment",null,0,{"$f":"D25","v":0},{"$f":"E25","v":0},{"$f":"F25","v":0},{"$f":"G25","v":0}]
[null,"Capital Investment",null,{"$f":"IF('Incremental Capital Summary'!$B$11=\"4th year of IRM cycle\", 'Incremental Capital Summary'!E25/2,  'Incremental Capital Summary'!E25)","v":0},0,0,0,0]
[null,"Closing Capital Investment",null,{"$f":"SUM(D23:D24)","v":0},{"$f":"SUM(E23:E24)","v":0},{"$f":"SUM(F23:F24)","v":0},{"$f":"SUM(G23:G24)","v":0},{"$f":"SUM(H23:H24)","v":0}]
[]
[null,"Opening Accumulated Amortization",null,0,{"$f":"D29","v":0},{"$f":"E29","v":0},{"$f":"F29","v":0},{"$f":"G29","v":0}]
[null,"Amortization",{"$f":"'Incremental Capital Summary'!I25","v":0},{"$f":"D24*$C$28","v":0},{"$f":"E23*$C$28","v":0},{"$f":"F23*$C$28","v":0},{"$f":"G23*$C$28","v":0},{"$f":"H23*$C$28","v":0}]
[null,"Closing Accumulated Amortization",null,{"$f":"SUM(D27:D28)","v":0},{"$f":"SUM(E27:E28)","v":0},{"$f":"SUM(F27:F28)","v":0},{"$f":"SUM(G27:G28)","v":0},{"$f":"SUM(H27:H28)","v":0}]
[]
[null,"Opening Net Fixed Assets",null,0,{"$f":"E23-E27","v":0},{"$f":"F23-F27","v":0},{"$f":"G23-G27","v":0},{"$f":"H23-H27","v":0}]
[null,"Closing Net Fixed Assets",null,{"$f":"D25-D29","v":0},{"$f":"E25-E29","v":0},{"$f":"F25-F29","v":0},{"$f":"G25-G29","v":0},{"$f":"H25-H29","v":0}]
[null,"Average Net Fixed Assets",null,{"$f":"SUM(D31:D32)/2","v":0},{"$f":"SUM(E31:E32)/2","v":0},{"$f":"SUM(F31:F32)/2","v":0},{"$f":"SUM(G31:G32)/2","v":0},{"$f":"SUM(H31:H32)/2","v":0}]
[]
[]
[]
[]
[null,"For PILs Calculation"]
[]
[null,"UCC",null,2014,2015,2016,2017,2018]
[null,null,null,"Forecasted","Forecasted","Forecasted","Forecasted","Forecasted"]
[]
[null,"Opening UCC",null,0,{"$f":"D51","v":0},{"$f":"E51","v":0},{"$f":"F51","v":0},{"$f":"G51","v":0}]
[null,"Capital Additions",null,{"$f":"D24","v":0},{"$f":"E24","v":0},{"$f":"F24","v":0},{"$f":"G24","v":0},{"$f":"H24","v":0}]
[null,"UCC Before Half Year Rule",null,{"$f":"SUM(D43:D44)","v":0},{"$f":"SUM(E43:E44)","v":0},{"$f":"SUM(F43:F44)","v":0},{"$f":"SUM(G43:G44)","v":0},{"$f":"SUM(H43:H44)","v":0}]
[null,"Half Year Rule (1/2 Additions - Disposals)",null,0,{"$f":"E44/2","v":0},{"$f":"F44/2","v":0},{"$f":"G44/2","v":0},{"$f":"H44/2","v":0}]
[null,"Reduced UCC",null,{"$f":"D45-D46","v":0},{"$f":"E45-E46","v":0},{"$f":"F45-F46","v":0},{"$f":"G45-G46","v":0},{"$f":"H45-H46","v":0}]
[null,"CCA Rate Class",{"$f":"'Incremental Capital Summary'!K25","v":0}]
[null,"CCA Rate ",{"$f":"'Incremental Capital Summary'!M25","v":0}]
[null,"CCA",null,{"$f":"D47*$C$49","v":0},{"$f":"E47*$C$49","v":0},{"$f":"F47*$C$49","v":0},{"$f":"G47*$C$49","v":0},{"$f":"H47*$C$49","v":0}]
[null,"Closing UCC",null,{"$f":"D45-D50","v":0},{"$f":"E45-E50","v":0},{"$f":"F45-F50","v":0},{"$f":"G45-G50","v":0},{"$f":"H45-H50","v":0}]